Cogmind - Beta 11 @@@ ROGUE MODE // 2022.04.02 @ 10:03:25 Player: Turbografx16 Result: Self-destructed Performance ------------- Evolutions (2) 1000 Regions Visited (5) 1000 Robots Destroyed (22) 110 Value Destroyed (486) 486 Prototype IDs (4) 80 Alien Tech Used (0) 0 Bonus (300) 300 TOTAL SCORE: 2976 Bonus ------- Aligned with FarCom 300 Cogmind --------- Core Integrity 536/550 Matter 84/300 Energy 140/140 System Corruption 0% Temperature Cool (0) Movement Hovering (62) Location -8/Materials Parts ------- > --- POWER (1) -------- Light Deuterium Engine > --- PROPULSION (4) --- Aluminum Leg Hover Unit Hover Unit Hover Unit > --- UTILITY (4) ------ Small Storage Unit Hacking Suite Hacking Suite Skeleton Box > --- WEAPON (2) ------- (None) > --- INVENTORY (8) ---- Light Ion Engine Improved Signal Interpreter PSU Rigger Improved EM Pulse Cannon Improved EM Pulse Cannon Rocket Launcher Datajack Field Lobotomy Kit (5) Peak State ------------ > --- POWER ------------ Light Deuterium Engine > --- PROPULSION ------- Aluminum Leg Hover Unit Hover Unit Hover Unit > --- UTILITY ---------- Small Storage Unit Hacking Suite Hacking Suite Skeleton Box > --- WEAPON ----------- Improved EM Pulse Cannon Improved EM Pulse Cannon > --- INVENTORY -------- Light Ion Engine Improved Signal Interpreter PSU Rigger Improved EM Pulse Cannon Improved EM Pulse Cannon Rocket Launcher Datajack Field Lobotomy Kit [Rating: 31] Favorites ----------- Power Light Ion Engine Engine Light Ion Engine Propulsion Aluminum Leg Leg Aluminum Leg Hover Unit Hover Unit Utility Hacking Suite Device Skeleton Box Storage Small Storage Unit Hackware Hacking Suite Weapon Improved EM Pulse Cannon Energy Gun EM Pulse Gun Energy Cannon Improved EM Pulse Cannon Ballistic Gun Assault Rifle Ballistic Cannon Assault Cannon Launcher Rocket Launcher Special Weapon Field Lobotomy Kit Special Melee Weapon Datajack Build | -11 -10 -10 -10 -9 -8 ------- Run | Scr Mat Min Exi Min Mat Slots Evolved 4 | . . . . . 4 Power . | . . . . . . Propulsion 2 | . . . . . 2 Utility 2 | . . . . . 2 Weapon . | . . . . . . Parts Attached 22 | . 1 3 3 . 15 Power 4 | . . . 1 . 3 Engine 4 | . . . 1 . 3 Core . | . . . . . . Reactor . | . . . . . . Propulsion 3 | . . . . . 3 Treads . | . . . . . . Leg . | . . . . . . Wheel . | . . . . . . Hover 3 | . . . . . 3 Flight . | . . . . . . Utility 4 | . 1 . . . 3 Device 2 | . . . . . 2 Storage . | . . . . . . Processor . | . . . . . . Hackware 2 | . 1 . . . 1 Protection . | . . . . . . Artifact . | . . . . . . Weapon 11 | . . 3 2 . 6 Energy Gun 1 | . . 1 . . . Energy Cannon 2 | . . . . . 2 Ballistic Gun 2 | . . . . . 2 Ballistic Cannon 1 | . . . . . 1 Launcher 3 | . . 2 1 . . Special Weapon 1 | . . . 1 . . Impact Weapon . | . . . . . . Slashing Weapon . | . . . . . . Piercing Weapon . | . . . . . . Special Melee Weapon 1 | . . . . . 1 Unidentified Prototypes 4 | . . . 1 . 3 Parts Lost 2 | . . 1 . 1 . Power . | . . . . . . Propulsion 1 | . . . . 1 . Utility . | . . . . . . Weapon 1 | . . 1 . . . Highest Loss Streak 1 | . . 1 . 1 . To Critical Strikes . | . . . . . . Average Slot Usage (%) 98 | . 99 100 100 85 98 Engine 11 | . 14 14 14 14 9 Leg 20 | . 28 28 28 14 9 Hover 10 | . . . . . 27 Device 4 | . . . . . 9 Storage 11 | . 14 14 14 14 9 Hackware 15 | . 13 14 14 14 17 Energy Gun 4 | . 14 7 . . . Energy Cannon 5 | . . . . . 12 Ballistic Gun 3 | . 14 6 . . . Launcher 9 | . . 14 27 28 1 Naked Turns . | . . . . . . Heaviest Build 24 | 12 12 15 20 15 24 Greatest Support 20 | 20 20 20 20 20 18 Greatest Overweight (x) 1 | . . . . 1 1 Average Overweight (x) . | . . . . . . Largest Inventory Capacity 8 | 8 8 8 8 8 8 Average Capacity 8 | 8 8 8 8 8 8 Most Carried 8 | 6 8 8 8 8 8 Average Carried 7 | 6 7 7 7 8 6 Final Capacity 8 | 8 8 8 8 8 8 Final Carried 8 | 6 7 7 8 8 8 Class Distribution -------------------- 58% | Mutant 33% | Hacker-Mutant 8% | Scavenger-Mutant Dominant Class ---------------- Mutant | -10/Materials Mutant | -10/Mines Mutant | -10/Exiles Mutant | -9/Mines Hacker-Mutant | -8/Materials Resources | -11 -10 -10 -10 -9 -8 ----------- Run | Scr Mat Min Exi Min Mat Matter Collected 413 | 195 78 1 . 47 92 Remotely . | . . . . . . Salvage Created 498 | 22 246 84 . 54 92 Parts 41 | 2 24 5 . 6 4 Haulers Intercepted . | . . . . . . Recyclers Shooed 1 | . . . . . 1 Parts Field Recycled . | . . . . . . Retrieved Matter . | . . . . . . Parts Self-Destructed . | . . . . . . Prevented . | . . . . . . Kills | -11 -10 -10 -10 -9 -8 ------- Run | Scr Mat Min Exi Min Mat Combat Hostiles Destroyed 16 | . 5 3 . 6 2 Guns 3 | . 3 . . . . Cannons 1 | . . . . . 1 AOE 12 | . 2 3 . 6 1 Classes Destroyed 9 | 1 4 2 . 1 1 Builder 1 | . . 1 . . . Tunneler 1 | 1 . . . . . Recycler 1 | . . 1 . . . Operator 2 | . 2 . . . . Watcher 1 | . 1 . . . . Swarmer 8 | . 2 3 . 3 . Grunt 5 | . 3 . . 2 . Duelist 1 | . . . . 1 . Sentry 2 | . . . . . 2 Best Kill Streak 6 | 1 4 5 . 6 1 Combat Bots Only 6 | . 2 3 . 6 1 Max Kills in Single Turn 3 | 1 1 3 . 3 1 Gunslinging . | . . . . . . Exploded 3 | . 1 1 . 3 1 Melee . | . . . . . . Uniques/NPCs Destroyed . | . . . . . . Combat | -11 -10 -10 -10 -9 -8 -------- Run | Scr Mat Min Exi Min Mat Damage Taken 497 | . 281 107 . 85 24 Core 85 | . 39 32 . . 14 Absorbed by Shields . | . . . . . . Core Remaining (%) 85 | 100 . . . 71 . Volleys Fired 32 | 1 20 4 . 4 3 Largest 2 | 2 2 2 . 2 2 Hottest 138 | 60 60 73 . 63 138 Shots Fired 63 | 2 40 8 . 8 5 Gun 45 | 2 40 3 . . . Cannon 4 | . . . . . 4 Launcher 14 | . . 5 . 8 1 Special . | . . . . . . Kinetic 23 | 1 20 . . . 2 Thermal . | . . . . . . Explosive 14 | . . 5 . 8 1 Electromagnetic 26 | 1 20 3 . . 2 Robot Hit Streak 4 | 1 4 2 . 4 2 Robot Miss Streak 3 | 1 2 3 . 1 2 Penetration Max . | . . . . . . Secondary Targets . | . . . . . . Shots Hit Robots 33 | 1 23 2 . 5 2 Core Hits 34 | 1 13 6 . 11 3 Critical Kills . | . . . . . . Critical Parts Destroyed . | . . . . . . Critical Strikes 1 | . 1 . . . . Corrupt 1 | . 1 . . . . Melee Attacks . | . . . . . . Impact . | . . . . . . Slashing . | . . . . . . Piercing . | . . . . . . Sneak Attacks . | . . . . . . Combat Hostiles . | . . . . . . Follow-up Attacks . | . . . . . . Damage Inflicted 1281 | 12 426 262 . 457 124 Guns 327 | 12 305 10 . . . Cannons 77 | . . . . . 77 Explosions 857 | . 121 252 . 457 27 Melee . | . . . . . . Ramming 20 | . . . . . 20 Kinetic 154 | . 133 . . . 21 Thermal 121 | . 121 . . . . Explosive 736 | . . 252 . 457 27 Electromagnetic 250 | 12 172 10 . . 56 Impact . | . . . . . . Slashing . | . . . . . . Piercing . | . . . . . . Highest Corruption . | . . . . . . Average Corruption . | . . . . . . Corruption Purged . | . . . . . . Corruption Blocked . | . . . . . . Overload Shots . | . . . . . . Overflow Damage 18 | . . 15 . 3 . Projectiles . | . . . . . . Explosions 18 | . . 15 . 3 . Melee . | . . . . . . Knockbacks . | . . . . . . Impact . | . . . . . . Kinetic . | . . . . . . Secondary . | . . . . . . Self-Inflicted Damage 153 | . 39 80 . 24 10 Shots 5 | . 1 3 . 1 . Rammed 1 | . . . . . 1 Targets Rammed 1 | . . . . . 1 Kicked . | . . . . . . Crushed . | . . . . . . Highest Temperature 75 | . 75 36 . 36 69 Average Temperature 25 | . 30 15 . 23 24 Received Heat Transfer 120 | . 87 . . 24 9 Siege Activations . | . . . . . . Robots Corrupted . | . . . . . . Combat Hostiles . | . . . . . . Parts Fried . | . . . . . . Impact Corruptions . | . . . . . . Robots Melted . | . . . . . . Combat Hostiles . | . . . . . . Parts Melted . | . . . . . . Heat Transferred 150 | . 150 . . . . Parts Sabotaged . | . . . . . . Parts Stolen . | . . . . . . Parts Stripped . | . . . . . . Power Chain Reactions 2 | . 2 . . . . Missiles Intercepted . | . . . . . . Alert | -11 -10 -10 -10 -9 -8 ------- Run | Scr Mat Min Exi Min Mat Peak Influence 253 | 5 187 171 . 253 200 Initial 98 | . 3 5 . . 98 Average 92 | 5 80 85 . 218 95 Maximum Alert Level 1 | . . . . 1 1 Low Security (%) 82 | 100 100 100 . 21 70 Level 1 17 | . . . . 78 29 Level 2 . | . . . . . . Level 3 . | . . . . . . Level 4 . | . . . . . . Level 5 . | . . . . . . High Security . | . . . . . . Max Security . | . . . . . . Squads Dispatched 3 | . 1 . . . 2 Investigation 2 | . . . . . 2 Extermination . | . . . . . . Reinforcement 1 | . 1 . . . . Assault . | . . . . . . Garrison . | . . . . . . Intercept . | . . . . . . Searches Triggered . | . . . . . . Construction Impeded . | . . . . . . Haulers Reinforced . | . . . . . . Active Scanning Responses . | . . . . . . Cargo Convoy Interrupts . | . . . . . . Stealth | -11 -10 -10 -10 -9 -8 --------- Run | Scr Mat Min Exi Min Mat Distress Signals 1 | . 1 . . . . Communications Jammed . | . . . . . . Distress Signals . | . . . . . . Times Spotted 34 | . 20 4 . 6 4 Peak Tracking Total 5 | . 5 3 . 3 2 Tactical Retreats 3 | . 2 1 . . . Traps | -11 -10 -10 -10 -9 -8 ------- Run | Scr Mat Min Exi Min Mat Traps Triggered 1 | . . . . . 1 Indirectly . | . . . . . . Trap Hack Attempts 3 | . . . . . 3 Triggered 1 | . . . . . 1 Disarmed . | . . . . . . Reprogrammed . | . . . . . . Reused . | . . . . . . Traps Extracted . | . . . . . . Installed . | . . . . . . Triggered . | . . . . . . Machines | -11 -10 -10 -10 -9 -8 ---------- Run | Scr Mat Min Exi Min Mat Machines Disabled 2 | . 2 . . . . Max in Single Turn 1 | . 1 . . . . Machines Sabotaged . | . . . . . . Garrisons Compromised . | . . . . . . Overloaded Fab Kills . | . . . . . . Hacking | -11 -10 -10 -10 -9 -8 --------- Run | Scr Mat Min Exi Min Mat Machines Accessed 10 | . 8 . . . 2 Terminals 9 | . 7 . . . 2 Fabricators . | . . . . . . Repair Stations . | . . . . . . Recycling Units 1 | . 1 . . . . Scanalyzers . | . . . . . . Garrison Access . | . . . . . . Total Hacks 26 | . 21 . . . 5 Successful 14 | . 11 . . . 3 Failed 12 | . 10 . . . 2 Catastrophic 1 | . . . . . 1 Database Lockouts . | . . . . . . Manual 27 | . 20 . 1 . 6 Terminals 25 | . 20 . . . 5 Fabricators . | . . . . . . Repair Stations . | . . . . . . Recycling Units 1 | . 1 . . . . Scanalyzers . | . . . . . . Garrison Access . | . . . . . . Terminal Hacks 5 | . 4 . . . 1 Branch Access Points 1 | . 1 . . . . Terminal Index 1 | . 1 . . . . Unreport Threat 2 | . 2 . . . . Recall Investigation 1 | . . . . . 1 Fabricator Hacks . | . . . . . . Repair Station Hacks . | . . . . . . Recycling Unit Hacks 1 | . 1 . . . . Report Inventory 1 | . 1 . . . . Scanalyzer . | . . . . . . Garrison Access Hacks . | . . . . . . Unauthorized Hacks 8 | . 6 . . . 2 Terminals 8 | . 6 . . . 2 Botnet 8 | . 6 . . . 2 Fabricators . | . . . . . . Repair Stations . | . . . . . . Recycling Units . | . . . . . . Scanalyzers . | . . . . . . Garrison Access . | . . . . . . Data Cores Recovered 1 | . 1 . . . . Used . | . . . . . . Hacking Detections 10 | . 7 . . . 3 Full Trace Events . | . . . . . . Feedback Events . | . . . . . . Feedback Blocked . | . . . . . . Robot Schematics Acquired . | . . . . . . Robots Built . | . . . . . . Authchips . | . . . . . . Time . | . . . . . . Total Robot Build Rating . | . . . . . . Part Schematics Acquired . | . . . . . . Parts Built . | . . . . . . Authchips . | . . . . . . Time . | . . . . . . Total Part Build Rating . | . . . . . . Parts Repaired . | . . . . . . Time . | . . . . . . Parts Recycled . | . . . . . . Recycled Matter . | . . . . . . Retrieved Matter . | . . . . . . Retrieved Components . | . . . . . . Parts Scanalyzed . | . . . . . . Part Schematics Acquired . | . . . . . . Parts Damaged . | . . . . . . Bothacking | -11 -10 -10 -10 -9 -8 ------------ Run | Scr Mat Min Exi Min Mat Used RIF Installer . | . . . . . . Robots Hacked . | . . . . . . Non-combat . | . . . . . . Combat . | . . . . . . Robot Hacks Applied . | . . . . . . Relay Couplers Released . | . . . . . . Fabnet Peak Effective % . | . . . . . . Robots Rewired . | . . . . . . Allies Hacked . | . . . . . . Hacks Repelled . | . . . . . . Allies | -11 -10 -10 -10 -9 -8 -------- Run | Scr Mat Min Exi Min Mat Total Allies . | . . . . . . Largest Group . | . . . . . . Highest-Rated Group . | . . . . . . Highest-Rated Ally . | . . . . . . Total Orders . | . . . . . . Ally Attacks . | . . . . . . Total Damage . | . . . . . . Kills . | . . . . . . Allies Corrupted . | . . . . . . Allies Melted . | . . . . . . Intel | -11 -10 -10 -10 -9 -8 ------- Run | Scr Mat Min Exi Min Mat Robot Analysis Total . | . . . . . . Derelict Logs Recovered 1 | . . 1 . . . Drone Launches . | . . . . . . Drone Recoveries . | . . . . . . Exploration | -11 -10 -10 -10 -9 -8 ------------- Run | Scr Mat Min Exi Min Mat Turns Passed 1812 | 3 395 242 401 38 733 Spaces Moved 1176 | 1 257 187 328 15 388 Core . | . . . . . . Treads . | . . . . . . Legs 788 | 1 257 187 328 15 . Wheels . | . . . . . . Hover 388 | . . . . . 388 Flight . | . . . . . . Fastest Speed 62 | 120 120 120 120 120 62 Average Speed 111 | 120 120 120 120 185 92 Slowest Speed 190 | 120 120 120 120 190 122 Overloaded Moves . | . . . . . . Propulsion Burnouts . | . . . . . . Robots Hopped . | . . . . . . Cave-ins Triggered . | . . . . . . Exploration Rate (%) 36 | 2 62 47 76 6 24 Regions Visited 5 Branch Regions 3 Pre-discovered Areas 1 | . . 1 . . . Known Exits Taken 1 | . 1 . . . . Unknown Exits Taken 4 | 1 . 1 1 1 . Scrap Searched 1 | . . 1 . . . Spaces Dug . | . . . . . . Terrain Destroyed 111 | . 6 36 . 57 12 Melee . | . . . . . . Projectile 1 | . . . . . 1 AOE 110 | . 6 36 . 57 11 Terrain Rammed . | . . . . . . Walls Destroyed . | . . . . . . Machines Disabled . | . . . . . . Actions | -11 -10 -10 -10 -9 -8 --------- Run | Scr Mat Min Exi Min Mat Total 1610 | 1 305 196 335 18 755 Wait 351 | . 17 . . . 334 Move 1171 | . 256 186 327 14 388 Hop . | . . . . . . Pick Up 13 | . 6 2 2 . 3 Fast Attach 7 | . 1 . 1 . 5 Attach 7 | . . 1 . . 6 Detach 3 | . . . 1 . 2 Swap 8 | . . 2 2 . 4 Drop 14 | . 5 1 2 . 6 Fire 32 | 1 20 4 . 4 3 Melee . | . . . . . . Ram 1 | . . . . . 1 Kick . | . . . . . . Crush . | . . . . . . Escape Stasis . | . . . . . . Rewire . | . . . . . . Trap 3 | . . . . . 3 Miscellaneous . | . . . . . . Route ------- -11/Scrapyard -10/Materials (discovered 3 exits: [*Mat] / *Min x2) -10/Mines -10/Exiles -9/Mines -8/Materials History --------- Turn | Location | Event 4 | -11/Scrapyard | Discovered new exit (range 0) 4 | -11/Scrapyard | Entered Materials 192 | -10/Materials | Identified exit to Mines 266 | -10/Materials | Discovered new exit (range 9) 311 | -10/Materials | Build established: Mutant 399 | -10/Materials | Entered Mines 506 | -10/Mines | Received a Rocket Launcher from a helpful Derelict 587 | -10/Mines | Deemed a non-threat by the Exiles lab entrance 587 | -10/Mines | Discovered new exit (range 5) 613 | -10/Mines | Assembled infested the area 641 | -10/Mines | Entered Exiles 674 | -10/Exiles | Met 8R-AWN 691 | -10/Exiles | Met EX-HEX 729 | -10/Exiles | Met EX-BIN 771 | -10/Exiles | Aligned with FarCom system 772 | -10/Exiles | Given EX-Vault access code 800 | -10/Exiles | Opened EX-Vault 806 | -10/Exiles | Found Prototype Special Weapon 806 | -10/Exiles | Identified Field Lobotomy Kit 810 | -10/Exiles | Found Prototype Device 816 | -10/Exiles | Found Prototype Device 843 | -10/Exiles | Warned to stay clear of 0b10 Research branches 877 | -10/Exiles | Met EX-DEC 942 | -10/Exiles | Visited The Gauntlet 1027 | -10/Exiles | Discovered new exit (range 14) 1042 | -10/Exiles | Stole three prototypes: Field Lobotomy Kit, Skeleton Box, PSU Rigger 1042 | -10/Exiles | Entered Mines 1044 | -9/Mines | Discovered new exit (range 9) 1080 | -9/Mines | Entered Materials 1080 | -8/Materials | Evolved 4 slots: Propulsion x2, Utility x2 1083 | -8/Materials | Identified Skeleton Box 1084 | -8/Materials | Identified PSU Rigger 1576 | -8/Materials | Build established: Hacker-Mutant 1813 | -8/Materials | Self-destructed Last Messages --------------- 01222_ An alarm sounds. 01222_ ALERT: Alarm triggered, dispatching investigation squad. 01261_ Connecting with Terminal... >>Trojan(Botnet) Trojan loaded successfully. Testing... Terminal linked with 1 system. Awaiting botnet instructions. >>Recall(Investigation) Establishing remote squad link... Recalled investigation squad L09BS96LUO. 01267_ Dropped Assault Cannon. 01267_ Dropped Hvy. Assault Rifle. 01268_ Acquired Imp. EM Pulse Cannon. 01300_ Triggered Alarm Trap. 01300_ An alarm sounds. 01300_ ALERT: Alarm triggered, dispatching investigation squad. 01312_ U-05 Engineer lays Concrete. 01784_ Dropped Imp. EM Pulse Cannon. 01792_ Slammed into R-06 Scavenger. Map ----- +----------------------------------------------------+ | ?????????????????????#####???? | | ?????##+############# ????? | | ###### ?????? | | # ! # ?????? | | # # """ !???????? | | # # """ #?????????? | | # # """ #####?????? | | # + """ !!#?????? | | # # !!#?????? | | # # *** !!#?????? | | # ## ** ** !!#?????? | | # ! ## * ** ==#?????? | | ####### ==#?????? | | ????# #####?????? | | ????# ##### #?????????? | | ????# #???#######+######?????? | | ????# #???# ! !#?????? | | ????# #???#] #?????? | | ????# #???#] " """"" #?????? | | ????# #???# """"""""" #?????? | | ?####+##### """ """ #?????? | | ?# w ##############?????? | | ?# #??????????????????? | | ?# #??????????????????? | | ?# u #??????????????????? | | ?# @ #??????????????????? | | ?# #??????????????????? | | ?# #??????????????????? | | ?# #??????????????????? | | ?# k #??????????????????? | | ?#####+##############????????? | | ????# ???????? | | ????# ???????? | | ????# ???????? | | ????# ##########+##????????? | | ????# #????????????????????? | | ????# #????????????????????? | | ????# ########?????????????? | | ????# # #?????????????? | | ????# # #?????????????? | | ????# # """ #?????????????? | | ????# + """ #?????????????? | | ????# # """ #?????????????? | | ????# # #?????????????? | | ????# ####+###?????????????? | | ????# #??#=#???????????????? | | ????# #??# #?????????????### | | ????# ####+##########??### | | ????# # + ### ## | | ????# # """ """ ### #### # | +----------------------------------------------------+ Best States ------------- Heat Dissipation 31 Energy Generation 14 Energy Capacity 140 Matter Stores 300 Matter Capacity 300 Sight Range 16 Terrain Scan Density 10 Evasion (%) 55 Offensive Hacking 20 Item Schematics ----------------- None Robot Schematics ------------------ None Fabricated ------------ Nothing Alien Tech Used ----------------- None Achievements -------------- None Challenges ------------ None Game ------ Seed AlertFlightMatrix Manual? 0 Play Time 00:17:24 Cumulative 55.1 hours Start 2022.04.02 @ 09:46:13 End 2022.04.02 @ 10:03:25 Sessions 1 Manual Loads 0 Difficulty Rogue Special Mode None Game No. 84 Rogue 28 Adventurer 56 Explorer 0 Win Type - Total 4 Types 3/0/0/1/0/0/0/0/0 Lore% 46 Gallery% 53 Achievement% 54 Wizard Run 0 Options --------- ASCII 0 Keyboard 0 Movement Mouse Keybinds 0 Fullscreen 1 Font 20/SmallcapsGlow Map View 66x50 Tactical HUD 1 Map Filters NONE Filters NONE Steam 1 RUN: d5bcbb54-9e6e-48a0-8214-53f2af1b771b